{"text_format":"1","workbook":"xlsx","n_sheets":4,"sheets":["Instrucciones","Relación de gastos","Relación de ingresos ","Gastos e ingresos"],"not_rendered":{"charts":0,"images":2,"macros":1,"external_links":0,"defined_names":12,"comments":0,"pivot_tables":0},"unopened":[],"bounds":{"document_bytes":16777216,"sheet_cells":100000,"rows_first":2000,"rows_last":500,"rows_between":2000,"halvings":0,"cell_chars":16384,"cell_head_chars":4096},"cells_cut":0,"cells_raw":0,"read":"whole","date_system":"1900"}

{"sheet":"Instrucciones","index":0,"n_rows":21,"n_cols":8,"rows_kept":21,"cut":false,"hidden":false,"merged":[[2,7,2,11],[3,2,4,17],[5,2,5,17],[7,2,7,17],[9,1,9,17],[11,1,11,17],[16,1,16,17],[18,1,18,17],[19,1,19,3],[10,1,10,17]]}
[]
[]
[null,null,null,null,null,null,null,"Memoria justificativa económica Bb"]
[null,null,"SUBVENCIONES DEL AYUNTAMIENTO DE BARCELONA PARA EL FORTALECIMIENTO DE LA ECONOMÍA SOCIAL Y SOLIDARIA Y POR LA INTERCOOPERACIÓN EN LA ESTRATEGIA #ESSBCN2030 -  ENFORTIM L’ESS 2025"]
[]
[null,null,"Aspectos relevantes relacionados con la justificación"]
[]
[null,null,"INSTRUCCIONES"]
[]
[null,"1. Cumplimentar sólo las celdas en blanco de la pestaña: \"Relación de gastos\" , \"Relación de ingresos\" y \"gastos e ingresos\" con los datos económicos del proyecto"]
[null,"1.1 Cumplimentar el cuadro Datos básicos de la pestaña \"Relación de gastos\""]
[null,"1.2 Cumplimentar el cuadro Gastos del proyecto/actividad/servicio subvencionado de la pestaña \"Relación de gastos\""]
[null,"1.3 Tener en cuenta los cuadros \"notas\" y \"obligaciones de la modalidad\" de la pestaña \"Relación de gastos\""]
[null,"1.4 Cumplimentar el cuadro Ingresos del proyecto/actividad/servicio subvencionado de la pestaña \"Relación de ingresos\""]
[null,"1.5 Tener en cuenta los cuadros \"notas\" de la pestaña \"Relación de ingresos\""]
[]
[null,"2. Imprimir las hojas de las 3 pestañas en formato pdf"]
[]
[null,"3. Es necesario que registre la documentación telemáticamente dentro de la convocatoria específica y utilice el código de expediente que sale a la publicación de la resolución provisional y/o definitiva"]
[null,"Enlace para realizar el trámite"]
[null,"Enlace para encontrar código expediente resolución provisional"]

{"sheet":"Relación de gastos","index":1,"n_rows":181,"n_cols":12,"rows_kept":181,"cut":false,"hidden":false,"merged":[[158,0,158,11],[179,0,179,11],[172,0,172,11],[171,0,171,11],[166,0,166,11],[180,0,180,10],[168,0,168,10],[169,0,169,10],[174,0,174,10],[170,0,170,11],[173,0,173,11],[176,0,176,10],[4,0,4,3],[150,0,150,2],[175,0,175,11],[177,0,177,10],[178,0,178,10],[159,0,159,10],[160,0,160,10],[161,0,161,10],[162,0,162,10],[164,0,164,10],[163,0,163,11],[165,0,165,11],[167,0,167,11],[29,11,29,12],[8,2,8,12],[33,11,33,12],[100,11,100,12],[101,11,101,12],[102,11,102,12],[103,11,103,12],[5,9,5,10],[56,11,56,12],[54,11,54,12],[53,11,53,12],[18,0,18,6],[6,2,6,3],[7,2,7,3],[14,11,14,12],[57,11,57,12],[67,0,67,12],[30,11,30,12],[16,11,16,12],[10,11,10,12],[11,11,11,12],[13,0,13,12],[17,11,17,12],[10,3,10,4],[18,11,18,12],[12,0,12,12],[5,0,5,1],[48,11,48,12],[5,4,5,6],[6,4,6,6],[7,4,7,6],[47,11,47,12],[46,11,46,12],[45,11,45,12],[10,2,11,2],[15,11,15,12],[6,0,6,1],[10,1,11,1],[10,0,11,0],[9,0,9,4],[20,11,20,12],[21,11,21,12],[22,11,22,12],[44,11,44,12],[42,11,42,12],[7,0,7,1],[6,9,6,10],[7,9,7,10],[48,0,48,6],[38,11,38,12],[106,11,106,12],[107,11,107,12],[108,11,108,12],[72,11,72,12],[71,11,71,12],[61,0,61,12],[54,0,54,6],[69,11,69,12],[66,11,66,12],[92,0,92,6],[92,11,92,12],[86,0,86,12],[91,11,91,12],[87,0,87,12],[84,11,84,12],[85,0,85,8],[65,11,65,12],[79,0,79,12],[84,0,84,6],[80,11,80,12],[83,11,83,12],[74,11,74,12],[76,11,76,12],[77,11,77,12],[66,0,66,6],[39,11,39,12],[19,0,19,12],[95,11,95,12],[96,11,96,12],[97,11,97,12],[98,0,98,6],[98,11,98,12],[40,11,40,12],[78,0,78,6],[78,11,78,12],[32,11,32,12],[36,11,36,12],[35,11,35,12],[62,11,62,12],[63,11,63,12],[49,0,49,12],[51,11,51,12],[52,11,52,12],[41,11,41,12],[60,0,60,6],[55,0,55,12],[73,0,73,12],[30,0,30,6],[151,0,151,12],[152,0,152,12],[153,0,153,12],[154,0,154,12],[155,0,155,12],[5,2,5,3],[37,0,37,12],[43,0,43,12],[68,11,68,12],[23,11,23,12],[24,0,24,6],[24,11,24,12],[25,0,25,12],[26,11,26,12],[27,11,27,12],[28,11,28,12],[34,11,34,12],[36,0,36,6],[42,0,42,6],[31,0,31,12],[50,11,50,12],[60,11,60,12],[59,11,59,12],[58,11,58,12],[148,11,148,12],[137,11,137,12],[138,11,138,12],[139,11,139,12],[140,0,140,6],[140,11,140,12],[142,11,142,12],[150,4,150,10],[148,0,148,8],[130,11,130,12],[131,11,131,12],[132,11,132,12],[133,11,133,12],[134,0,134,6],[134,11,134,12],[136,11,136,12],[135,0,135,12],[147,11,147,12],[122,11,122,12],[123,0,123,12],[117,0,117,12],[129,0,129,12],[105,0,105,12],[64,11,64,12],[109,11,109,12],[110,0,110,6],[110,11,110,12],[85,11,85,12],[82,11,82,12],[72,0,72,6],[113,11,113,12],[114,11,114,12],[115,11,115,12],[116,0,116,6],[116,11,116,12],[99,0,99,12],[93,0,93,12],[70,11,70,12],[94,11,94,12],[111,0,111,12],[104,0,104,6],[104,11,104,12],[156,0,156,12],[112,11,112,12],[5,11,5,12],[6,11,6,12],[3,0,3,12],[143,11,143,12],[8,0,8,1],[147,0,147,8],[144,11,144,12],[145,11,145,12],[146,0,146,6],[146,11,146,12],[141,0,141,12],[124,11,124,12],[125,11,125,12],[126,11,126,12],[127,11,127,12],[128,0,128,6],[128,11,128,12],[118,11,118,12],[119,11,119,12],[120,11,120,12],[121,11,121,12],[122,0,122,6]]}
[]
[]
[]
["Relación de todos los gastos realizados para la ejecución de la actividad subvencionada"]
["Datos básicos"]
["Organización beneficiaria que lidera:         ",null,null,null,"Importe del coste total del proyecto:",null,null,null,null,null,null,"euros"]
["Código de subvención:",null,null,null,"Importe de la subvención otorgada:",null,null,null,null,null,null,"euros"]
["Nombre del proyecto subvencionado:",null,null,null,"Periodo de ejecución del proyecto subvencionado:",null,null,null,null,null,null,"a"]
["Resto organizaciones firmantes acuerdo intercooperación (si aplica):"]
["Gastos del proyecto/actividad/servicio subvencionado (*)"]
["Núm. de orden (0)","Número de documento: justificantes gasto personal(1), factura o recibo/ticket(2)","Concepto de la factura / \ndocumento probatorio equivalente","Emisor/a de la factura",null,"Fecha de emisión","Importe total de la factura","Porcentaje de iva deducido o el de después de aplicar la Prorrata","Importe tras deducir el IVA correspondiente","Importe imputable (dedicado) al proyecto (3)","Importe imputable a la subvención municipall (4)","Observaciones"]
[null,null,null,"NIF","Nombre","dd/mm/aaaa","euros","%","euros","euros","euros"]
["GASTOS DIRECTOS (Aquellos que se identifican directamente con el proyecto)"]
["D1. Nóminas y seguridad social IRPF (régimen general o socios/as cooperativistas en régimen de autónomos) del personal propio vinculado al proyecto subvencionable (máximo 40% importe subvención)"]
["D.1.1"]
[]
[]
[]
[null,null,null,null,null,null,null,null,"Subtotal D1",{"$f":"SUM(J15:J18)","v":0},{"$f":"SUM(K15:K18)","v":0}]
["D2.   Nóminas y seguridad social de estudiantes en prácticas (con un límite del 80% de su sueldo bruto correspondiente al periodo de la ejecución de la subvención) - excepto si la seguridad social está bonificada"]
["D.2.1"]
[]
[]
[]
[null,null,null,null,null,null,null,null,"Subtotal D2",{"$f":"SUM(J21:J24)","v":0},{"$f":"SUM(K21:K24)","v":0}]
["D3.  Trabajos realizados por profesionales y empresas externas directamente vinculadas al proyecto"]
[]
[]
[]
[]
[null,null,null,null,null,null,null,null,"Subtotal D3",{"$f":"SUM(J27:J30)","v":0},{"$f":"SUM(K27:K30)","v":0}]
["D4. Adquisición de materiales y bienes consumibles íntegramente imputables al proyecto"]
[]
[]
[]
[]
[null,null,null,null,null,null,null,null,"Subtotal D4",{"$f":"SUM(J33:J36)","v":0},{"$f":"SUM(K33:K36)","v":0}]
["D5.  Transporte – mensajería imputables al proyecto"]
[]
[]
[]
[]
[null,null,null,null,null,null,null,null,"Subtotal D5",{"$f":"SUM(J39:J42)","v":0},{"$f":"SUM(K39:K42)","v":0}]
["D6. Publicidad y propaganda de las actividades directamente vinculadas al proyecto"]
[]
[]
[]
[]
[null,null,null,null,null,null,null,null,"Subtotal D6",{"$f":"SUM(J45:J48)","v":0},{"$f":"SUM(K45:K48)","v":0}]
["D7.  Alojamiento y dietas, del personal contratado y voluntario, vinculados al proyecto"]
[]
[]
[]
[]
[null,null,null,null,null,null,null,null,"Subtotal D7",{"$f":"SUM(J51:J54)","v":0},{"$f":"SUM(K51:K54)","v":0}]
["D8.  Ayudas al transporte para los/as participantes de los proyectos en caso de que sea necesario y de manera justificada"]
[]
[]
[]
[]
[null,null,null,null,null,null,null,null,"Subtotal D8",{"$f":"SUM(J57:J60)","v":0},{"$f":"SUM(K57:K60)","v":0}]
["D9.  Viajes y desplazamientos imputables a las actividades del proyecto (con un límite del 7% del importe de la subvención)"]
[]
[]
[]
[]
[null,null,null,null,null,null,null,null,"Subtotal D9",{"$f":"SUM(J63:J66)","v":0},{"$f":"SUM(K63:K66)","v":0}]
["D10. Tributos, cuando sean abonados directamente por la persona jurídica beneficiaria"]
[]
[]
[]
[]
[null,null,null,null,null,null,null,null,"Subtotal D10",{"$f":"SUM(J69:J72)","v":0},{"$f":"SUM(K69:K72)","v":0}]
["D11.  Gastos del informe de auditoría (máximo 1.500€ subvención)"]
[]
[]
[]
[]
[null,null,null,null,null,null,null,null,"Subtotal D11",{"$f":"SUM(J75:J78)","v":0},{"$f":"SUM(K75:K78)","v":0},{"$f":"IF(K79<=1500,\"\",\"Error: D11 no pot superar els 1500,00 €\")","v":""}]
["D12.   Otros gastos que de manera justificada y por la tipología del proyecto puedan imputarse directamente al proyecto (cuando no haya partida en los puntos anteriores)"]
[]
[]
[]
[]
[null,null,null,null,null,null,null,null,"Subtotal D12",{"$f":"SUM(J81:J84)","v":0},{"$f":"SUM(K81:K84)","v":0}]
["TOTAL GASTOS DIRECTOS",null,null,null,null,null,null,null,null,{"$f":"J19+J25+J31+J37+J43+J49+J55+J61+J67+J73+J79+J85","v":0},{"$f":"K19+K25+K31+K37+K43+K49+K55+K61+K67+K73+K79+K85","v":0}]
["GASTOS INDIRECTOS (no se pueden asignar directamente al proyecto sin utilizar algún % de asignación) (máximo 10% subvención)"]
["I.1 Personal de apoyo al proyecto (nóminas y seguridad social)"]
[]
[]
[]
[]
[null,null,null,null,null,null,null,null,"Subtotal I1",{"$f":"SUM(J89:J92)","v":0},{"$f":"SUM(K89:K92)","v":0}]
["I.2 Seguros"]
[]
[]
[]
[]
[null,null,null,null,null,null,null,null,"Subtotal I2",{"$f":"SUM(J95:J98)","v":0},{"$f":"SUM(K95:K98)","v":0}]
["I.3 Amortización"]
[]
[]
[]
[]
[null,null,null,null,null,null,null,null,"Subtotal I3",{"$f":"SUM(J101:J104)","v":0},{"$f":"SUM(K101:K104)","v":0}]
["I.4 Alquiler de bienes inmuebles"]
[]
[]
[]
[]
[null,null,null,null,null,null,null,null,"Subtotal I4",{"$f":"SUM(J107:J110)","v":0},{"$f":"SUM(K107:K110)","v":0}]
["I.5 Adquisición de materiales y bienes consumibles parcialmente imputables al proyecto"]
[]
[]
[]
[]
[null,null,null,null,null,null,null,null,"Subtotal I5",{"$f":"SUM(J113:J116)","v":0},{"$f":"SUM(K113:K116)","v":0}]
["I.6 Mantenimiento de edificios y/o instalaciones"]
[]
[]
[]
[]
[null,null,null,null,null,null,null,null,"Subtotal I6",{"$f":"SUM(J119:J122)","v":0},{"$f":"SUM(K119:K122)","v":0}]
["I.7 Comunicaciones (teléfono, correos, conexión a internet)"]
[]
[]
[]
[]
[null,null,null,null,null,null,null,null,"Subtotal I7",{"$f":"SUM(J125:J128)","v":0},{"$f":"SUM(K125:K128)","v":0}]
["I.8 Gastos financieros"]
[]
[]
[]
[]
[null,null,null,null,null,null,null,null,"Subtotal I8",{"$f":"SUM(J131:J134)","v":0},{"$f":"SUM(K131:K134)","v":0}]
["I.9 Suministros"]
[]
[]
[]
[]
[null,null,null,null,null,null,null,null,"Subtotal I9",{"$f":"SUM(J137:J140)","v":0},{"$f":"SUM(K137:K140)","v":0}]
["I.10 Trabajo realizado por otras empresas, parcialmente imputables al proyecto (limpieza, seguridad...)"]
[]
[]
[]
[]
[null,null,null,null,null,null,null,null,"Subtotal I10",{"$f":"SUM(J143:J146)","v":0},{"$f":"SUM(K143:K146)","v":0}]
["TOTAL GASTOS INDIRECTOS",null,null,null,null,null,null,null,null,{"$f":"+J93+J99+J105+J111+J117+J123+J129+J135+J141+J147","v":0},{"$f":"+K93+K99+K105+K111+K117+K123+K129+K135+K141+K147","v":0}]
["TOTAL GASTOS PROYECTO (DIRECTOS + INDIRECTOS)",null,null,null,null,null,null,null,null,{"$f":"J86+J148","v":0},{"$f":"K86+K148","v":0}]
[]
["(*) Notas"]
["Se deben relacionar todos los gastos del proyecto/actividad/servicio subvencionado. En el caso de que el número de filas de cada concepto sea insuficiente se puede insertar líneas dentro del mismo concepto, teniendo en cuenta que el sumatorio total incluya las nuevas líneas insertadas."]
["(0) El número de orden debe ser correlativo empezando por D.1.1, D.1.2, D.1.3, D.2.4, etc."]
["(1) Respecto a los gastos de recursos humanos, puede ser subvencionable el coste total salarial mensual, que corresponde a la suma de la retribución bruta que aparece en la nómina del trabajador/a más la cuota de la empresa en la Seg. Social. Los gastos de personal se justifican con la nómina del trabajador/a acompañada de los correspondientes RLC y RNT (anteriores TC1 y TC2) de la TMV y el modelo 111 del IRPF."]
["(2) En el caso de que el documento justificativo del resto de gastos, no sea una factura, sino otro documento probatorio equivalente, como un recibo o justificante (como por dietas o transporte público), indicarlo en la columna \"observaciones\"."]
["(3) En el caso de que un justificante incluya conceptos que no tienen relación con el proyecto/actividad/servicio para el que se ha otorgado la subvención, aquí sólo se debe indicar la parte que realmente se ha dedicado al proyecto."]
["(4) En esta columna se debe indicar el importe total o parcial de la factura que se imputa a la subvención recibida del Ayuntamiento de Barcelona. El total imputado, en esta columna, debe ser igual al importe de la subvención recibida."]
[]
["Modalidad Bb. Creación y/o fortalecimiento de ecosistemas cooperativos y clústeres de ESS mediante acciones de intercooperación, vinculadas a la Estrategia #ESSBCN2030 y a los objetivos estratégicos del PIESS 2024-2027"]
["1. La cuantía de la subvención otorgada no superará el 80% del gasto total del proyecto a subvencionar."]
["2. El importe máximo de subvención para esta modalidad Bb del ámbito temático de Intercooperación (B) es 25.000€."]
["3. En el caso de que la solicitud presentada sobrepase el importe máximo, se considerará como importe solicitado el máximo de lo establecido en la convocatoria."]
["4. En esta modalidad se aceptará la imputación de gastos de personal propio y directamente vinculado al proyecto de las organizaciones participantes del acuerdo de colaboración."]
["5. Se limita con un máximo del 40% el importe de la subvención para gastos de personal propio asignado directamente al proyecto subvencionado (régimen general o socios/as cooperativistas en régimen de autónomos-), y un 80% para nóminas y seguridad social de estudiantes en prácticas (sueldo bruto correspondiente al periodo de la ejecución de la subvención) - excepto si la seguridad social está bonificada."]
["6. En el caso de alquileres de inmuebles los gastos de alquiler se imputarán a los gastos indirectos con el límite establecido por estos gastos indirectos."]
["7. Para las subvenciones otorgadas por importe igual o superior a 20.000 € es necesario un informe de auditoría para la justificación. El importe de este informe se considera gasto subvencionable, con un límite máximo de 1.500€."]
["8. Son imputables en esta modalidad los gastos indirectos, detallados en el apartado 13.3. de las bases reguladoras; con un máximo del 10% del importe de la subvención.8. Son imputables en esta modalidad los gastos indirectos, detallados en el apartado 13.3. de las bases reguladoras; con un máximo del 10% del importe de la subvención."]
["9. En caso de realizarse gastos superiores a los importes establecidos por los contratos menores de servicios, suministros y obras de la Ley de Contratos del Sector Público 9/2017, se deberán incorporar tres presupuestos solicitados y argumentar el motivo de la adjudicación en el caso de no ser la propuesta más ventajosa económicamente."]
["10. No serán elegibles facturas de empresas emitidas entre las organizaciones participantes del acuerdo de colaboración."]
["11. En ningún caso se considerarán gastos subvencionables:\n> Los impuestos indirectos cuando sean susceptibles de recuperación o compensación.\n> Los gastos de inversión, incluidas las adquisiciones de bienes muebles.\n> Los gastos realizados con fecha anterior al inicio del proyecto y fecha posterior a la finalización del proyecto.\n> Otros gastos que se indiquen en la convocatoria."]
["12. La retribución de las personas contratadas en el marco del proyecto subvencionado no puede ser inferior al Salario Mínimo Interprofesional (SMI), ni a la estipulada en el correspondiente convenio o marco normativo de referencia (punto 7 de las bases 2025: requisitos de los proyectos)."]
["13. Los materiales producidos de difusión, estudios, informes o materiales didácticos utilizados, etc. en el caso de tratarse de gasto elegible de la subvención, deberán tener licencia Creative Commons -Compartir Igual- (share a like) y no podrá tener la condición –Sin Obras Derivadas- (no derivate Works)."]
["14. Los proyectos subvencionados deben fomentar actividades de interés público o social, las cuales deben ser gratuitas para las personas participantes o en ningún caso el precio debe suponer un obstáculo para su participación, buscando otras formas de acceso para personas con dificultades económicas. En el caso de que haya algún tipo de lucro, tendrá que revertir en las propias actividades subvencionadas."]
["15. El Ayuntamiento de Barcelona y sus entidades municipales en ningún caso subvencionarán el mismo proyecto, ejecutado durante el mismo periodo, por ningún otro procedimiento de concesión que no sea el regulado por las bases reguladoras."]
["16. El/la beneficiario/a no podrá alterar en ningún caso el destino de las subvenciones concedidas."]
["17. La organización designada como representante de la agrupación será plenamente responsable del proyecto ante el Ayuntamiento respecto al cumplimiento de las obligaciones establecidas en las bases reguladoras, sin perjuicio de la responsabilidad de las demás organizaciones socias de la agrupación, siéndole de aplicación los requisitos previstos en el punto 6.1 de las bases reguladoras."]
["18. En ningún caso podrán formar parte de la agrupación las organizaciones que hayan recibido otras subvenciones para la ejecución del mismo proyecto de otras administraciones públicas."]
["19. El programa de prácticas del alumno/a debe ser de una duración mínima de 400 horas o superior."]
["20. Sólo puede presentarse una solicitud por un puesto de prácticas por organización solicitante."]
["21. Se debe remunerar al alumno/a en prácticas universitarias (curriculares o extracurriculares) con un coste bruto hora mínimo de 6€/hora o superior. No se podrá disminuir el coste bruto hora, una vez concedida la subvención. Sí será posible incrementarlo, no obstante."]
["22. Se debe remunerar al alumno/a según la modalidad de FP dual escogida como mínimo de acuerdo con la normativa específica que establece el Departamento de Educación de la Generalidad de Cataluña o superior."]

{"sheet":"Relación de ingresos ","index":2,"n_rows":74,"n_cols":10,"rows_kept":74,"cut":false,"hidden":false,"merged":[[60,6,60,9],[66,6,66,9],[61,6,61,9],[68,6,68,9],[62,6,62,9],[63,6,63,9],[64,6,64,9],[65,6,65,9],[9,2,9,3],[9,1,10,1],[67,0,67,3],[28,0,28,3],[47,0,47,9],[58,0,58,3],[39,6,39,9],[59,0,59,9],[58,6,58,9],[45,6,45,9],[44,6,44,9],[52,0,52,3],[55,6,55,9],[54,6,54,9],[43,6,43,9],[67,6,67,9],[2,0,2,9],[11,0,11,9],[17,0,17,9],[23,0,23,9],[9,6,10,9],[12,6,12,9],[13,6,13,9],[9,0,10,0],[14,6,14,9],[15,6,15,9],[6,2,6,3],[5,2,5,3],[4,2,4,3],[8,0,8,3],[20,6,20,9],[3,0,3,3],[42,6,42,9],[53,0,53,9],[52,6,52,9],[51,6,51,9],[34,6,34,9],[50,6,50,9],[46,6,46,9],[40,6,40,9],[35,0,35,9],[41,0,41,9],[40,0,40,3],[34,0,34,3],[46,0,46,3],[16,6,16,9],[22,6,22,9],[31,6,31,9],[22,0,22,3],[25,6,25,9],[24,6,24,9],[21,6,21,9],[29,0,29,9],[16,0,16,3],[32,6,32,9],[33,6,33,9],[68,0,68,4],[7,2,7,9],[73,1,73,9],[19,6,19,9],[18,6,18,9],[36,6,36,9],[30,6,30,9],[49,6,49,9],[48,6,48,9],[28,6,28,9],[27,6,27,9],[26,6,26,9],[38,6,38,9],[37,6,37,9],[4,0,4,1],[7,0,7,1],[4,4,4,6],[5,4,5,6],[6,4,6,6],[5,0,5,1],[6,0,6,1]]}
[]
[]
["Detalle de todos los ingresos obtenidos y aportaciones del propio beneficiario para la ejecución de la actividad subvencionada"]
["Datos básicos"]
["Organización beneficiaria que lidera:         ",null,{"$f":"IF('Relación de gastos'!C6:D6<>\"\",'Relación de gastos'!C6:D6,\"\")","v":""},null,"Importe del coste total del proyecto:",null,null,{"$f":"IF(+'Relación de gastos'!J6=\"\",\"\",+'Relación de gastos'!J6)","v":""},"euros"]
["Código de subvención:",null,{"$f":"IF('Relación de gastos'!C7:D7<>\"\",'Relación de gastos'!C7:D7,\"\")","v":""},null,"Importe de la subvención otorgada:",null,null,{"$f":"IF(+'Relación de gastos'!J7=\"\",\"\",+'Relación de gastos'!J7)","v":""},"euros"]
["Nombre del proyecto subvencionado:",null,{"$f":"IF('Relación de gastos'!C8:D8<>\"\",'Relación de gastos'!C8:D8,\"\")","v":""},null,"Periodo de ejecución del proyecto subvencionado:",null,null,{"$f":"IF(+'Relación de gastos'!J8=\"\",\"\",+'Relación de gastos'!J8)","v":""},"a",{"$f":"IF(+'Relación de gastos'!M8=\"\",\"\",+'Relación de gastos'!M8)","v":""}]
["Resto organizaciones firmantes acuerdo intercooperación (si aplica): ",null,{"$f":"IF('Relación de gastos'!C9:D9<>\"\",'Relación de gastos'!C9:D9,\"\")","v":""}]
["Ingresos del proyecto/actividad/servicio subvencionado (*)"]
["núm. de orden(0)","Concepto del ingreso","Emisor/a del ingreso",null,"Fecha de cobro\n(dd/mm/aaaa)","Importe","Observaciones"]
[null,null,"NIF","Nombre","(1)","euros"]
["A. Subvención municipal "]
["A1."]
[]
[]
[]
[null,null,null,null,"Subtotal A",{"$f":"SUM(F13:F16)","v":0}]
["B. Subvenciones de otras administraciones"]
["B2."]
[]
[]
[]
[null,null,null,null,"Subtotal B",{"$f":"SUM(F19:F22)","v":0}]
["C. Subvenciones de ente privados"]
[]
[]
[]
[]
[null,null,null,null,"Subtotal C",{"$f":"SUM(F25:F28)","v":0}]
["D. Recursos propios de la organización aplicados al proyecto"]
[]
[]
[]
[]
[null,null,null,null,"Subtotal D",{"$f":"SUM(F31:F34)","v":0}]
["E. Taquillaje"]
[]
[]
[]
[]
[null,null,null,null,"Subtotal E",{"$f":"SUM(F37:F40)","v":0}]
["F. Cuotas de inscripción"]
[]
[]
[]
[]
[null,null,null,null,"Subtotal F",{"$f":"SUM(F43:F46)","v":0}]
["G. Venta de Productos"]
[]
[]
[]
[]
[null,null,null,null,"Subtotal G",{"$f":"SUM(F49:F52)","v":0}]
["H. Publicidad y/o Esponsorización"]
[]
[]
[]
[]
[null,null,null,null,"Subtotal H",{"$f":"SUM(F55:F58)","v":0}]
["I. Otros ingresos"]
[]
[]
[]
[]
[]
[]
[]
[null,null,null,null,"Subtotal I",{"$f":"SUM(F61:F67)","v":0}]
["TOTAL INGRESOS",null,null,null,null,{"$f":"+F17+F23+F29+F35+F41+F47+F53+F59+F68","v":0}]
[]
[null,"(*) Notas"]
[null,"(0) El número de orden debe ser correlativo empezando por el número A1, A2, A3, B4, etc."]
[null,"(1) En caso de que el ingreso esté pendiente, indicar \"P. Cobro\"."]
[null,"."]

{"sheet":"Gastos e ingresos","index":3,"n_rows":49,"n_cols":11,"rows_kept":49,"cut":false,"hidden":false,"merged":[[4,0,4,1],[4,2,4,3],[47,0,47,10],[48,0,48,10],[42,0,42,10],[43,0,43,10],[44,0,44,10],[45,0,45,10],[46,0,46,10],[26,0,27,1],[26,2,27,2],[26,3,27,3],[29,6,29,7],[5,0,5,1],[5,2,5,3],[10,6,10,7],[6,0,6,1],[6,2,6,3],[10,0,10,1],[41,0,41,10],[7,0,7,1],[30,8,30,9],[38,7,40,10],[11,0,12,1],[30,6,30,7],[6,5,6,7],[26,4,27,4],[7,2,7,10],[11,8,12,8],[11,9,12,9],[11,2,12,2],[11,3,12,3],[11,6,12,7]]}
[]
[]
["Estado de los gastos realizados y de los ingresos obtenidos para la ejecución de la actividad subvencionada (*)"]
["Datos básicos"]
["Organización beneficiaria que lidera:         ",null,{"$f":"'Relación de ingresos '!C5:D5","v":""},null,null,"Importe del coste total del proyecto:",null,{"$f":"IF(+'Relación de gastos'!J6=\"\",\"\",+'Relación de gastos'!J6)","v":""},"euros"]
["Código de subvención:",null,{"$f":"'Relación de ingresos '!C6:D6","v":""},null,null,"Importe de la subvención otorgada:",null,{"$f":"IF(+'Relación de gastos'!J7=\"\",\"\",+'Relación de gastos'!J7)","v":""},"euros"]
["Nombre del proyecto subvencionado:",null,{"$f":"'Relación de ingresos '!C7:D7","v":""},null,null,"Periodo de ejecución del proyecto subvencionado:",null,null,{"$f":"'Relación de ingresos '!H7","v":""},"a",{"$f":"'Relación de ingresos '!J7","v":""}]
["Resto organizaciones firmantes acuerdo intercooperación (si aplica): ",null,{"$f":"IF('Relación de gastos'!C9:D9<>\"\",'Relación de gastos'!C9:D9,\"\")","v":""}]
[]
["SUBVENCIONES PARA EL FORTALECIMIENTO DE LA ECONOMÍA SOCIAL Y SOLIDARIA Y LA INTERCOOPERACIÓN 2025"]
["GASTOS PREVISTOS",null,"importe en euros",null,null,null,"INGRESOS PREVISTOS",null,"importe en euros"]
["Gastos directos (aquellos que se identifican directamente con el proyecto)",null,"Previsión inicial o reformulada ya aprobada (1)","Gastos realizados (2)","Diferencia",null,"Ingresos previstos",null,"Previsión inicial (1)","Ingresos obtenidos (3)"]
[null,null,null,null,"(2-1)"]
["Bb","D1. Nóminas y seguridad social IRPF (régimen general o socios/as cooperativistas en régimen de autónomos) del personal propio vinculado al proyecto subvencionable (máximo 40% importe subvención)",null,{"$f":"'Relación de gastos'!J19","v":0},{"$f":"+C14-D14","v":0},null,"A.","Subvención municipal (importe solicitado a la instancia/otorgado)",null,{"$f":"'Relación de ingresos '!F17","v":0}]
[null,"D2. Nóminas y seguridad social de estudiantes en prácticas (con un límite del 80% de su sueldo bruto correspondiente al periodo de la ejecución de la subvención) - excepto si la seguridad social está bonificada",null,{"$f":"'Relación de gastos'!J25","v":0},0,null,"B.","Subvenciones de otras administraciones",null,{"$f":"'Relación de ingresos '!F23","v":0}]
[null,"D3. Trabajos realizados por profesionales y empresas externas directamente vinculadas al proyecto",null,{"$f":"'Relación de gastos'!J31","v":0},0,null,"C.","Subvenciones de ente privados",null,{"$f":"'Relación de ingresos '!F29","v":0}]
[null,"D4. Adquisición de materiales y bienes consumibles íntegramente imputables al proyecto",null,{"$f":"'Relación de gastos'!J37","v":0},0,null,"D.","Recursos propios de la organización aplicados al proyecto",null,{"$f":"'Relación de ingresos '!F35","v":0}]
[null,"D5. Transporte – mensajería imputables al proyecto",null,{"$f":"'Relación de gastos'!J43","v":0},0,null,"E.","Taquillaje",null,{"$f":"'Relación de ingresos '!F41","v":0}]
[null,"D6. Publicidad y propaganda de las actividades directamente vinculadas al proyecto",null,{"$f":"'Relación de gastos'!J49","v":0},0,null,"F.","Cuotas de inscripción",null,{"$f":"'Relación de ingresos '!F47","v":0}]
[null,"D7. Alojamiento y dietas, del personal contratado y voluntario, vinculados al proyecto",null,{"$f":"'Relación de gastos'!J55","v":0},0,null,"G.","Venta de Productos",null,{"$f":"'Relación de ingresos '!F53","v":0}]
[null,"D8. Ayudas al transporte para los/las participantes de los proyectos en caso de que sea necesario de manera justificada",null,{"$f":"'Relación de gastos'!J61","v":0},0,null,"H","Publicidad y/o Esponsorización",null,{"$f":"'Relación de ingresos '!F59","v":0}]
[null,"D9. Viajes y desplazamientos imputables a las actividades del proyecto",null,{"$f":"'Relación de gastos'!J67","v":0},0,null,"I.","Otros ingresos",null,{"$f":"'Relación de ingresos '!F68","v":0}]
[null,"D10. Tributos, cuando sean abonados directamente por la persona jurídica o física beneficiaria",null,{"$f":"'Relación de gastos'!J73","v":0},0,null,null,"Total Ingresos",{"$f":"SUM(I14:I22)","v":0},{"$f":"SUM(J14:J22)","v":0}]
[null,"D11. Gastos del informe de auditoría (máximo 1.500€ subvención)",null,{"$f":"'Relación de gastos'!J79","v":0},0]
[null,"D12. Otros gastos que de manera justificada y por la tipología del proyecto puedan imputarse directamente al proyecto",null,{"$f":"'Relación de gastos'!J85","v":0},0]
[null,"Total Gastos Directos",{"$f":"SUM(C14:C25)","v":0},{"$f":"SUM(D14:D25)","v":0},{"$f":"SUM(E14:E25)","v":0}]
["Gastos indirectos \n(se podrán asignar al proyecto haciendo sevir un porcentaje de asignación)",null,"Previsión inicial o reformulada a aprobada (1)","Gastos realizados (2)","Diferencia\n"]
[null,null,null,null,"(2-1)"]
[null,"I.1 Personal propio vinculado indirectamente (nóminas y seguridad social)",null,{"$f":"'Relación de gastos'!J93","v":0},{"$f":"+C29-D29","v":0}]
[null,"I.2 Seguros",null,{"$f":"'Relación de gastos'!J99","v":0},0,null,"Ingresos menos gastos ",null,{"$f":"+I23-C40","v":0},{"$f":"+J23-D40","v":0}]
[null,"I.3 Amortización",null,{"$f":"'Relación de gastos'!J105","v":0},0,null,"Desviación de Gastos (4)",null,"Desviación de ingresos (4)"]
[null,"I.4 Alquiler de bienes inmuebles",null,{"$f":"'Relación de gastos'!J111","v":0},0,null,"Importe"," % ","Import","%"]
[null,"I.5 Adquisición de materiales y bienes consumibles parcialmente imputables al proyecto",null,{"$f":"'Relación de gastos'!J117","v":0},0,null,{"$f":"D40-C40","v":0},{"$f":"D40/C40","v":{"$error":"#DIV/0!"}},{"$f":"J23-I23","v":0},{"$f":"J23/I23","v":{"$error":"#DIV/0!"}}]
[null,"I.6 Mantenimiento de edificios y/o instalaciones",null,{"$f":"'Relación de gastos'!J123","v":0},0,null,null,null,"% subvencionado inicialmente o después de reformulación (5)",{"$f":"I14/I23","v":{"$error":"#DIV/0!"}}]
[null,"I.7 Comunicaciones (teléfono, correos, conexión a internet)",null,{"$f":"'Relación de gastos'!J129","v":0},0,null,null,null,"% subvencionado tras justificación (6)",{"$f":"J14/J23","v":{"$error":"#DIV/0!"}}]
[null,"I.8 Gastos financieros",null,{"$f":"'Relación de gastos'!J135","v":0},0]
[null,"I.9 Suministros",null,{"$f":"'Relación de gastos'!J141","v":0},0]
[null,"I.10 Trabajo realizado por otras empresas, parcialmente imputables al proyecto subvencionable (limpieza, seguridad...)",null,{"$f":"'Relación de gastos'!J147","v":0},0]
[null,"Total Gastos Indirectos (Máx. 10% subv)",{"$f":"SUM(C29:C38)","v":0},{"$f":"SUM(D29:D38)","v":0},{"$f":"SUM(E29:E38)","v":0}]
[null,"Total Gastos",{"$f":"+C26+C39","v":0},{"$f":"+D26+D39","v":0},{"$f":"+E39+E26","v":0}]
["(*) Notas"]
["Las columnas sombreadas en color se irán rellenando automáticamente a partir de los datos introducidos en las pestañas relación de gastos y relación de ingresos. Por lo tanto, no imprima esta hoja hasta haber rellenado los demás."]
["(1) Previsión inicial o reformulación ya aprobada= Se debe indicar la previsión inicial de gastos y de ingresos según lo que se indicó en el proyecto original en el \"plan de viabilidad económica del proyecto - presupuesto general\". En caso de que ya se haya aprobado una reformulación, se debe indicar las cantidades reformuladas."]
["(2) Gastos reales = Coste real total del proyecto subvencionado. Esta columna se actualiza con los datos de la pestaña relación de gastos, no hay que rellenar los datos, sólo habrá que revisar que son correctos."]
["(2-1) Esta columna está vinculada y se actualiza con los datos de las dos columnas anteriores, no hay que rellenar ningún dato."]
["(3) Ingresos reales =Total de ingresos obtenidos para la realización del proyecto subvencionado. Esta columna se actualiza con los datos de la pestaña relación de ingresos, no hay que rellenar los datos, sólo habrá que revisar que son correctos."]
["(4)  Desviación: En el caso de los gastos, la desviación es la diferencia entre gastos reales y la previsión inicial de gastos; y en el caso de ingresos, la diferencia entre los ingresos reales y la previsión inicial de ingresos."]
["(5) % financiación municipal inicial o después de reformulación = porcentaje que supone la subvención municipal (A) respecto del total de ingresos del proyecto."]
["(6) % financiación municipal tras justificación  = porcentaje que supone la subvención municipal (A) respecto del total de ingresos del proyecto subvencionado. En caso de existir una desviación siempre se debe motivar."]